[Event "*** Titled Tuesday Blitz"]
[Site "Chess.com"]
[Date "2020.11.10"]
[Round "9"]
[White "andriipalchuk"]
[Black "Fins0905"]
[Result "1/2-1/2"]
[WhiteElo "2447"]
[BlackElo "2614"]
[TimeControl "180+1"]
[EndTime "11:52:04 PST"]
[Termination "Game drawn by repetition"]

1. e4 {[%clk 0:03:00.9]} 1... d5 {[%clk 0:02:58.6]} 2. exd5 {[%clk 0:03:00.9]}
2... Qxd5 {[%clk 0:02:58.5]} 3. Nc3 {[%clk 0:03:01.6]} 3... Qa5 {[%clk
0:02:58.5]} 4. Nf3 {[%clk 0:03:00.2]} 4... Nf6 {[%clk 0:02:58.6]} 5. d4 {[%clk
0:02:59.9]} 5... Bf5 {[%clk 0:02:57.9]} 6. Ne5 {[%clk 0:02:57.9]} 6... c6 {[%clk
0:02:56]} 7. Nc4 {[%clk 0:02:56.1]} 7... Qd8 {[%clk 0:02:54.2]} 8. Be3 {[%clk
0:02:51.2]} 8... e6 {[%clk 0:02:53.7]} 9. Be2 {[%clk 0:02:49.5]} 9... Be7 {[%clk
0:02:52.8]} 10. g4 {[%clk 0:02:44.3]} 10... Be4 {[%clk 0:02:35.4]} 11. Nxe4
{[%clk 0:01:54.6]} 11... Nxe4 {[%clk 0:02:36.3]} 12. O-O {[%clk 0:01:54.4]}
12... Nd7 {[%clk 0:02:30.8]} 13. Nd2 {[%clk 0:01:43.4]} 13... Nxd2 {[%clk
0:02:15.4]} 14. Qxd2 {[%clk 0:01:44.3]} 14... Qc7 {[%clk 0:02:13.1]} 15. c4
{[%clk 0:01:38.8]} 15... Bd6 {[%clk 0:01:59]} 16. h3 {[%clk 0:01:32.5]} 16...
O-O {[%clk 0:01:52.4]} 17. Rad1 {[%clk 0:01:23.5]} 17... Rfe8 {[%clk 0:01:50.8]}
18. f4 {[%clk 0:01:03]} 18... Rad8 {[%clk 0:01:41.6]} 19. Kg2 {[%clk 0:00:52.8]}
19... Nf8 {[%clk 0:01:39.8]} 20. Bd3 {[%clk 0:00:39.6]} 20... Ng6 {[%clk
0:01:34.8]} 21. Bxg6 {[%clk 0:00:39]} 21... hxg6 {[%clk 0:01:35.5]} 22. Qe2
{[%clk 0:00:39.3]} 22... Be7 {[%clk 0:01:27.9]} 23. b3 {[%clk 0:00:38.6]} 23...
a5 {[%clk 0:01:27.4]} 24. Rd3 {[%clk 0:00:36.2]} 24... a4 {[%clk 0:01:25.4]} 25.
bxa4 {[%clk 0:00:28.8]} 25... Ra8 {[%clk 0:01:22.6]} 26. Qc2 {[%clk 0:00:28.9]}
26... Qa5 {[%clk 0:01:20.2]} 27. Rb1 {[%clk 0:00:23.7]} 27... Reb8 {[%clk
0:01:08]} 28. Kf3 {[%clk 0:00:10.7]} 28... Qxa4 {[%clk 0:01:07.1]} 29. Qxa4
{[%clk 0:00:11.6]} 29... Rxa4 {[%clk 0:01:07.6]} 30. Rdb3 {[%clk 0:00:11.4]}
30... Rxc4 {[%clk 0:00:49.5]} 31. Rxb7 {[%clk 0:00:10.4]} 31... Re8 {[%clk
0:00:50]} 32. Rb8 {[%clk 0:00:09.7]} 32... Rxb8 {[%clk 0:00:40.9]} 33. Rxb8+
{[%clk 0:00:10.6]} 33... Kh7 {[%clk 0:00:41.4]} 34. Ra8 {[%clk 0:00:10.2]} 34...
Bf6 {[%clk 0:00:39.8]} 35. Ke4 {[%clk 0:00:07.4]} 35... Rb4 {[%clk 0:00:30.9]}
36. Kd3 {[%clk 0:00:07]} 36... Rb1 {[%clk 0:00:19.2]} 37. a4 {[%clk 0:00:06.9]}
37... Rb3+ {[%clk 0:00:18.5]} 38. Ke2 {[%clk 0:00:06.4]} 38... Rb4 {[%clk
0:00:18.4]} 39. Kd3 {[%clk 0:00:04.1]} 39... Rb3+ {[%clk 0:00:18.7]} 40. Ke4
{[%clk 0:00:04.6]} 40... Rb4 {[%clk 0:00:18.7]} 41. Kd3 {[%clk 0:00:04.4]} 41...
Rb3+ {[%clk 0:00:18.6]} 1/2-1/2

[Event "*** Titled Tuesday Blitz"]
[Site "Chess.com"]
[Date "2020.11.10"]
[Round "9"]
[White "TorFredrikKaasen"]
[Black "hansen"]
[Result "0-1"]
[WhiteElo "2737"]
[BlackElo "2899"]
[TimeControl "180+1"]
[EndTime "11:52:05 PST"]
[Termination "hansen won on time"]

1. d4 {[%clk 0:03:00.9]} 1... Nf6 {[%clk 0:02:54.6]} 2. c4 {[%clk 0:03:01.3]}
2... e6 {[%clk 0:02:50.9]} 3. Nf3 {[%clk 0:03:00.9]} 3... Bb4+ {[%clk
0:02:44.9]} 4. Nbd2 {[%clk 0:03:00.4]} 4... Be7 {[%clk 0:02:45.6]} 5. e4 {[%clk
0:02:58.9]} 5... d6 {[%clk 0:02:45.6]} 6. Bd3 {[%clk 0:02:58.6]} 6... Nc6 {[%clk
0:02:40]} 7. d5 {[%clk 0:02:52.2]} 7... Ne5 {[%clk 0:02:38.8]} 8. Nxe5 {[%clk
0:02:48.8]} 8... dxe5 {[%clk 0:02:39.7]} 9. Nf3 {[%clk 0:02:45.8]} 9... O-O
{[%clk 0:02:14.8]} 10. O-O {[%clk 0:02:45.6]} 10... Bd6 {[%clk 0:01:41]} 11. h3
{[%clk 0:02:36.3]} 11... h6 {[%clk 0:01:34.9]} 12. Be3 {[%clk 0:02:33.6]} 12...
b6 {[%clk 0:01:34]} 13. Rc1 {[%clk 0:02:30.5]} 13... Qe7 {[%clk 0:01:33.5]} 14.
Qc2 {[%clk 0:02:21.1]} 14... Nd7 {[%clk 0:01:32.3]} 15. Rfd1 {[%clk 0:02:15.6]}
15... a5 {[%clk 0:01:31.7]} 16. Bf1 {[%clk 0:02:06.1]} 16... Nc5 {[%clk
0:01:29.2]} 17. Bd2 {[%clk 0:01:31.6]} 17... exd5 {[%clk 0:01:21.5]} 18. exd5
{[%clk 0:01:12.1]} 18... e4 {[%clk 0:01:21.2]} 19. Re1 {[%clk 0:00:58.3]} 19...
f5 {[%clk 0:01:19.4]} 20. Bc3 {[%clk 0:00:54.8]} 20... Bd7 {[%clk 0:01:13.3]}
21. Nd4 {[%clk 0:00:51.1]} 21... Rae8 {[%clk 0:01:13.5]} 22. Nb3 {[%clk
0:00:25.4]} 22... Ba4 {[%clk 0:01:06.4]} 23. Rcd1 {[%clk 0:00:16.6]} 23... Qg5
{[%clk 0:01:04.3]} 24. Bd4 {[%clk 0:00:08.9]} 24... Qf4 {[%clk 0:00:55.9]} 25.
g3 {[%clk 0:00:07.8]} 25... Qg5 {[%clk 0:00:56.4]} 26. h4 {[%clk 0:00:07.7]}
26... Qg6 {[%clk 0:00:50.9]} 27. Qc3 {[%clk 0:00:06.9]} 27... Bxb3 {[%clk
0:00:45]} 28. axb3 {[%clk 0:00:07.8]} 28... f4 {[%clk 0:00:45.3]} 29. Bg2 {[%clk
0:00:01.6]} 29... e3 {[%clk 0:00:34]} 30. gxf4 {[%clk 0:00:01.1]} 30... Rxf4
{[%clk 0:00:08.8]} 31. fxe3 {[%clk 0:00:01.5]} 31... Rg4 {[%clk 0:00:08.2]} 32.
Qd2 {[%clk 0:00:01.5]} 32... Nxb3 {[%clk 0:00:06.6]} 33. Qe2 {[%clk 0:00:01.4]}
33... Nxd4 {[%clk 0:00:05.7]} 34. Rxd4 {[%clk 0:00:01.4]} 34... Rxd4 {[%clk
0:00:05.8]} 0-1

[Event "*** Titled Tuesday Blitz"]
[Site "Chess.com"]
[Date "2020.11.10"]
[Round "9"]
[White "SharapovEvgeny"]
[Black "Ze-Pequeno"]
[Result "1-0"]
[WhiteElo "2469"]
[BlackElo "2271"]
[TimeControl "180+1"]
[EndTime "11:52:05 PST"]
[Termination "SharapovEvgeny won on time"]

1. c4 {[%clk 0:02:59.4]} 1... Nf6 {[%clk 0:02:57.8]} 2. Nc3 {[%clk 0:02:59]}
2... c5 {[%clk 0:02:54.7]} 3. Nf3 {[%clk 0:02:58.1]} 3... b6 {[%clk 0:02:50.6]}
4. d4 {[%clk 0:02:55.9]} 4... cxd4 {[%clk 0:02:48.6]} 5. Nxd4 {[%clk 0:02:55.9]}
5... Bb7 {[%clk 0:02:46]} 6. f3 {[%clk 0:02:55.7]} 6... d6 {[%clk 0:02:40]} 7.
e4 {[%clk 0:02:54.4]} 7... e6 {[%clk 0:02:37.2]} 8. Be2 {[%clk 0:02:53.9]} 8...
Be7 {[%clk 0:02:34.3]} 9. O-O {[%clk 0:02:53.1]} 9... O-O {[%clk 0:02:32.7]} 10.
Be3 {[%clk 0:02:52.3]} 10... a6 {[%clk 0:02:29.3]} 11. Qd2 {[%clk 0:02:51.7]}
11... Nbd7 {[%clk 0:02:27.6]} 12. Rfc1 {[%clk 0:02:50.8]} 12... Qc7 {[%clk
0:02:25.8]} 13. Rab1 {[%clk 0:02:50.4]} 13... Rac8 {[%clk 0:02:18.8]} 14. b4
{[%clk 0:02:49.4]} 14... Rfd8 {[%clk 0:02:07.6]} 15. Rc2 {[%clk 0:02:48]} 15...
Ne5 {[%clk 0:01:50.6]} 16. Na4 {[%clk 0:02:46.1]} 16... Nfd7 {[%clk 0:01:46.5]}
17. Qc1 {[%clk 0:02:41.5]} 17... Qb8 {[%clk 0:01:24.3]} 18. Nb3 {[%clk
0:02:34.5]} 18... Ba8 {[%clk 0:01:11.9]} 19. c5 {[%clk 0:02:30.8]} 19... b5
{[%clk 0:01:08.5]} 20. Nb2 {[%clk 0:02:08.9]} 20... dxc5 {[%clk 0:00:37.5]} 21.
bxc5 {[%clk 0:02:01.6]} 21... Nc6 {[%clk 0:00:18.9]} 22. a3 {[%clk 0:01:48.3]}
22... Qc7 {[%clk 0:00:18.2]} 23. Nd3 {[%clk 0:01:42.2]} 23... Bf6 {[%clk
0:00:13.4]} 24. Nb4 {[%clk 0:01:38.8]} 24... Bb7 {[%clk 0:00:10.9]} 25. Nxc6
{[%clk 0:01:36.4]} 25... Bxc6 {[%clk 0:00:10]} 26. Qe1 {[%clk 0:01:28.5]} 26...
Nb8 {[%clk 0:00:08.8]} 27. Rd1 {[%clk 0:01:15.2]} 27... Be5 {[%clk 0:00:08.6]}
28. g3 {[%clk 0:01:07.4]} 28... h6 {[%clk 0:00:08.5]} 29. Kg2 {[%clk 0:01:03]}
29... Bf6 {[%clk 0:00:08]} 30. Rxd8+ {[%clk 0:01:00.8]} 30... Rxd8 {[%clk
0:00:07.8]} 31. Rd2 {[%clk 0:01:00.3]} 31... Rxd2 {[%clk 0:00:06.3]} 32. Qxd2
{[%clk 0:00:59.9]} 32... Kf8 {[%clk 0:00:06.6]} 33. Bf4 {[%clk 0:00:56.8]} 33...
e5 {[%clk 0:00:03.8]} 34. Be3 {[%clk 0:00:56.3]} 34... Be7 {[%clk 0:00:03.9]}
35. h4 {[%clk 0:00:45.5]} 35... Bd8 {[%clk 0:00:03.8]} 36. h5 {[%clk 0:00:42]}
36... Qd7 {[%clk 0:00:03.8]} 37. Qxd7 {[%clk 0:00:38.5]} 37... Bxd7 {[%clk
0:00:03.8]} 38. f4 {[%clk 0:00:33.6]} 38... Nc6 {[%clk 0:00:02.2]} 39. f5 {[%clk
0:00:30.9]} 1-0

[Event "*** Titled Tuesday Blitz"]
[Site "Chess.com"]
[Date "2020.11.10"]
[Round "9"]
[White "crazy_but_lazy"]
[Black "JonahWillow"]
[Result "1-0"]
[WhiteElo "2492"]
[BlackElo "2599"]
[TimeControl "180+1"]
[EndTime "11:52:06 PST"]
[Termination "crazy_but_lazy won by checkmate"]

1. d4 {[%clk 0:03:00.9]} 1... Nf6 {[%clk 0:03:00.1]} 2. c4 {[%clk 0:03:00.5]}
2... c5 {[%clk 0:03:00.3]} 3. Nf3 {[%clk 0:02:58.3]} 3... e6 {[%clk 0:03:00.6]}
4. g3 {[%clk 0:02:58]} 4... cxd4 {[%clk 0:02:51.5]} 5. Nxd4 {[%clk 0:02:58.9]}
5... Nc6 {[%clk 0:02:52.4]} 6. Nb3 {[%clk 0:02:53.9]} 6... Qb6 {[%clk
0:02:44.8]} 7. Bg2 {[%clk 0:02:51.5]} 7... Ne5 {[%clk 0:02:39.1]} 8. N1d2 {[%clk
0:02:32.3]} 8... d5 {[%clk 0:02:22.4]} 9. cxd5 {[%clk 0:02:27.5]} 9... exd5
{[%clk 0:02:23.3]} 10. O-O {[%clk 0:02:26.1]} 10... Bd6 {[%clk 0:02:19.9]} 11.
Nf3 {[%clk 0:02:24.7]} 11... Nxf3+ {[%clk 0:02:13.4]} 12. Bxf3 {[%clk
0:02:25.6]} 12... Be6 {[%clk 0:02:13.4]} 13. Be3 {[%clk 0:02:24.4]} 13... Qd8
{[%clk 0:02:07.7]} 14. Nc5 {[%clk 0:02:18]} 14... Qe7 {[%clk 0:01:57.3]} 15.
Qa4+ {[%clk 0:02:15.4]} 15... Kf8 {[%clk 0:01:40.5]} 16. Nxe6+ {[%clk
0:02:12.4]} 16... fxe6 {[%clk 0:01:41.4]} 17. Rac1 {[%clk 0:01:55.6]} 17... Kf7
{[%clk 0:01:39.1]} 18. Qb3 {[%clk 0:01:52.2]} 18... Rhc8 {[%clk 0:01:36.8]} 19.
Bg5 {[%clk 0:01:40.2]} 19... h6 {[%clk 0:01:11.1]} 20. Bxf6 {[%clk 0:01:34.7]}
20... gxf6 {[%clk 0:01:12]} 21. Bh5+ {[%clk 0:01:34.2]} 21... Kg7 {[%clk
0:01:10.8]} 22. Qf3 {[%clk 0:01:34.4]} 22... f5 {[%clk 0:00:57.4]} 23. Qb3
{[%clk 0:01:34.1]} 23... b6 {[%clk 0:00:44.7]} 24. Bf3 {[%clk 0:01:31.8]} 24...
Qg5 {[%clk 0:00:43.2]} 25. Qa4 {[%clk 0:01:21]} 25... Rxc1 {[%clk 0:00:41]} 26.
Qd7+ {[%clk 0:01:13.3]} 26... Be7 {[%clk 0:00:38.4]} 27. Qxe6 {[%clk 0:01:04.4]}
27... Rxf1+ {[%clk 0:00:37.1]} 28. Kxf1 {[%clk 0:01:04.8]} 28... Qf6 {[%clk
0:00:34.7]} 29. Qxd5 {[%clk 0:01:03.6]} 29... Rd8 {[%clk 0:00:34.5]} 30. Qb7
{[%clk 0:00:50.4]} 30... Rd2 {[%clk 0:00:34.3]} 31. Kg2 {[%clk 0:00:50.8]} 31...
Rxb2 {[%clk 0:00:34.1]} 32. Qxa7 {[%clk 0:00:51.2]} 32... Qe6 {[%clk 0:00:24.8]}
33. a4 {[%clk 0:00:45.9]} 33... Ra2 {[%clk 0:00:22.1]} 34. Qa8 {[%clk
0:00:42.7]} 34... Qe5 {[%clk 0:00:17.8]} 35. Bd5 {[%clk 0:00:40.1]} 35... Qxe2
{[%clk 0:00:04.8]} 36. Qg8+ {[%clk 0:00:36.4]} 36... Kf6 {[%clk 0:00:05]} 37.
Bxa2 {[%clk 0:00:22.1]} 37... Bc5 {[%clk 0:00:04.8]} 38. Qf7+ {[%clk 0:00:17.8]}
38... Kg5 {[%clk 0:00:04.8]} 39. h4+ {[%clk 0:00:16]} 39... Kg4 {[%clk
0:00:05.4]} 40. Qg6# {[%clk 0:00:16.3]} 1-0

[Event "*** Titled Tuesday Blitz"]
[Site "Chess.com"]
[Date "2020.11.10"]
[Round "9"]
[White "ural58"]
[Black "KaterinaMiroshnik"]
[Result "0-1"]
[WhiteElo "2384"]
[BlackElo "2561"]
[TimeControl "180+1"]
[EndTime "11:52:07 PST"]
[Termination "KaterinaMiroshnik won by resignation"]

1. e4 {[%clk 0:03:00.9]} 1... e6 {[%clk 0:02:59.5]} 2. Qe2 {[%clk 0:03:00.3]}
2... Ne7 {[%clk 0:02:57.4]} 3. Nc3 {[%clk 0:02:57.6]} 3... d5 {[%clk 0:02:56.9]}
4. d4 {[%clk 0:02:57.8]} 4... c6 {[%clk 0:02:54.3]} 5. Nf3 {[%clk 0:02:57.4]}
5... Nd7 {[%clk 0:02:53.7]} 6. Bf4 {[%clk 0:02:53.5]} 6... dxe4 {[%clk
0:02:52.7]} 7. Nxe4 {[%clk 0:02:53]} 7... Nd5 {[%clk 0:02:46.6]} 8. Nd6+ {[%clk
0:02:52.8]} 8... Bxd6 {[%clk 0:02:44.7]} 9. Bxd6 {[%clk 0:02:53.7]} 9... N7f6
{[%clk 0:02:43.2]} 10. Ba3 {[%clk 0:02:53]} 10... Ne7 {[%clk 0:02:41.2]} 11.
O-O-O {[%clk 0:02:50.6]} 11... O-O {[%clk 0:02:39.5]} 12. Ne5 {[%clk 0:02:49.7]}
12... Re8 {[%clk 0:02:37.6]} 13. Qf3 {[%clk 0:02:45]} 13... Qd5 {[%clk
0:01:51.1]} 14. Bc4 {[%clk 0:02:25.2]} 14... Qxf3 {[%clk 0:01:47]} 15. Nxf3
{[%clk 0:02:26.1]} 15... b5 {[%clk 0:01:47.2]} 16. Bd3 {[%clk 0:02:22.3]} 16...
a5 {[%clk 0:01:47.2]} 17. Bc5 {[%clk 0:02:13]} 17... Ned5 {[%clk 0:01:44.2]} 18.
g3 {[%clk 0:02:09.3]} 18... Nb4 {[%clk 0:01:40.6]} 19. a3 {[%clk 0:02:04]} 19...
Nxd3+ {[%clk 0:01:37]} 20. Rxd3 {[%clk 0:02:04.9]} 20... Ne4 {[%clk 0:01:37.3]}
21. Rf1 {[%clk 0:02:01.6]} 21... e5 {[%clk 0:01:36.8]} 22. Bb6 {[%clk
0:01:48.1]} 22... Bh3 {[%clk 0:01:33.7]} 23. Re1 {[%clk 0:01:41.9]} 23... Nxf2
{[%clk 0:01:33.7]} 24. Rd2 {[%clk 0:01:33.3]} 24... e4 {[%clk 0:01:33.9]} 25.
Rxf2 {[%clk 0:01:20.4]} 25... exf3 {[%clk 0:01:33.5]} 26. Rxe8+ {[%clk
0:01:20.1]} 26... Rxe8 {[%clk 0:01:34.4]} 27. Rxf3 {[%clk 0:01:17.2]} 27... a4
{[%clk 0:01:31.5]} 28. c4 {[%clk 0:01:14.3]} 28... bxc4 {[%clk 0:01:28.7]} 29.
Kd2 {[%clk 0:01:10.6]} 29... Rb8 {[%clk 0:01:25.4]} 30. Re3 {[%clk 0:00:58.9]}
30... Be6 {[%clk 0:01:22.8]} 31. d5 {[%clk 0:00:50.2]} 31... cxd5 {[%clk
0:01:20.4]} 32. Bd4 {[%clk 0:00:49.9]} 32... Rb5 {[%clk 0:01:18.3]} 33. Bc3
{[%clk 0:00:46.6]} 33... h6 {[%clk 0:01:18]} 34. Re5 {[%clk 0:00:46.1]} 34...
Rb8 {[%clk 0:01:13.8]} 35. Ke3 {[%clk 0:00:46.4]} 35... Re8 {[%clk 0:01:10.8]}
36. Kd4 {[%clk 0:00:46.7]} 36... f6 {[%clk 0:01:07]} 37. Re3 {[%clk 0:00:44]}
37... Kf7 {[%clk 0:01:04.7]} 38. Kc5 {[%clk 0:00:42.9]} 38... Rd8 {[%clk
0:01:00.9]} 39. Bd4 {[%clk 0:00:42.7]} 39... Bf5 {[%clk 0:00:58.8]} 40. Kb4
{[%clk 0:00:40.3]} 40... Rb8+ {[%clk 0:00:55.9]} 41. Kxa4 {[%clk 0:00:37.8]}
41... Be4 {[%clk 0:00:54.9]} 42. b4 {[%clk 0:00:26]} 42... cxb3 {[%clk
0:00:51.9]} 43. Bb2 {[%clk 0:00:20.4]} 43... Bc2 {[%clk 0:00:47.6]} 44. Rc3
{[%clk 0:00:18.6]} 44... d4 {[%clk 0:00:45.5]} 45. Rc7+ {[%clk 0:00:18.4]} 45...
Ke6 {[%clk 0:00:42.9]} 46. Rxg7 {[%clk 0:00:16.3]} 46... d3 {[%clk 0:00:39.6]}
47. Rg6 {[%clk 0:00:16.5]} 47... d2 {[%clk 0:00:37.5]} 48. Rxf6+ {[%clk
0:00:16.8]} 48... Kd5 {[%clk 0:00:33.5]} 49. Rf1 {[%clk 0:00:15.2]} 0-1

[Event "*** Titled Tuesday Blitz"]
[Site "Chess.com"]
[Date "2020.11.10"]
[Round "9"]
[White "MatyChess1"]
[Black "MartinMatthiesen"]
[Result "1-0"]
[WhiteElo "2562"]
[BlackElo "2409"]
[TimeControl "180+1"]
[EndTime "11:52:08 PST"]
[Termination "MatyChess1 won by resignation"]

1. e4 {[%clk 0:03:00.9]} 1... e5 {[%clk 0:02:58.6]} 2. Nf3 {[%clk 0:03:00.9]}
2... Nc6 {[%clk 0:02:58.4]} 3. Bc4 {[%clk 0:03:01.5]} 3... Nf6 {[%clk
0:02:57.6]} 4. d3 {[%clk 0:03:01.9]} 4... Bc5 {[%clk 0:02:56.8]} 5. c3 {[%clk
0:03:02]} 5... d6 {[%clk 0:02:56.8]} 6. Bb3 {[%clk 0:03:02.5]} 6... O-O {[%clk
0:02:55.9]} 7. h3 {[%clk 0:03:03.4]} 7... h6 {[%clk 0:02:55.7]} 8. O-O {[%clk
0:03:03.9]} 8... Re8 {[%clk 0:02:55.5]} 9. Re1 {[%clk 0:03:04.3]} 9... a6 {[%clk
0:02:48.5]} 10. Nbd2 {[%clk 0:03:04.7]} 10... Be6 {[%clk 0:02:47]} 11. Nf1
{[%clk 0:03:05]} 11... Ba7 {[%clk 0:02:39.7]} 12. Ng3 {[%clk 0:03:04.7]} 12...
d5 {[%clk 0:02:35.9]} 13. Qe2 {[%clk 0:03:03.2]} 13... Qd7 {[%clk 0:02:27.9]}
14. Nh4 {[%clk 0:02:48.3]} 14... dxe4 {[%clk 0:02:15.7]} 15. dxe4 {[%clk
0:02:45.5]} 15... Bxb3 {[%clk 0:02:13.5]} 16. axb3 {[%clk 0:02:45.3]} 16... a5
{[%clk 0:02:13.4]} 17. Nhf5 {[%clk 0:02:43.4]} 17... Qe6 {[%clk 0:02:07.3]} 18.
Qb5 {[%clk 0:02:34.5]} 18... Bb6 {[%clk 0:01:59.4]} 19. Be3 {[%clk 0:02:34.8]}
19... Bxe3 {[%clk 0:01:57.5]} 20. Rxe3 {[%clk 0:02:35.1]} 20... Rab8 {[%clk
0:01:39.2]} 21. Rd3 {[%clk 0:02:29.4]} 21... h5 {[%clk 0:01:37.3]} 22. Rad1
{[%clk 0:02:23.6]} 22... g6 {[%clk 0:01:28.8]} 23. Nh4 {[%clk 0:02:17.5]} 23...
b6 {[%clk 0:01:17]} 24. Nf3 {[%clk 0:01:58.5]} 24... Red8 {[%clk 0:01:08.2]} 25.
Rxd8+ {[%clk 0:01:55.2]} 25... Rxd8 {[%clk 0:01:07.7]} 26. Rxd8+ {[%clk
0:01:55.1]} 26... Nxd8 {[%clk 0:01:07.4]} 27. Qxe5 {[%clk 0:01:55.1]} 27... Qxe5
{[%clk 0:00:55.8]} 28. Nxe5 {[%clk 0:01:56]} 28... Ne6 {[%clk 0:00:54.6]} 29.
Nd3 {[%clk 0:01:31.9]} 29... h4 {[%clk 0:00:52]} 30. e5 {[%clk 0:01:30.4]} 30...
hxg3 {[%clk 0:00:47.1]} 31. exf6 {[%clk 0:01:29.9]} 31... gxf2+ {[%clk
0:00:44.1]} 32. Kxf2 {[%clk 0:01:30.8]} 32... Nf8 {[%clk 0:00:19.4]} 33. Ne5
{[%clk 0:01:17]} 33... Nh7 {[%clk 0:00:19.2]} 34. Nd7 {[%clk 0:01:16]} 34... Ng5
{[%clk 0:00:15.3]} 35. Ke3 {[%clk 0:01:16.4]} 35... Ne6 {[%clk 0:00:14.7]} 36.
h4 {[%clk 0:01:14.3]} 36... Kh7 {[%clk 0:00:14.2]} 37. Ne5 {[%clk 0:01:07.9]}
37... Nd8 {[%clk 0:00:13.3]} 38. g4 {[%clk 0:01:01.9]} 38... Kg8 {[%clk
0:00:12.1]} 39. Ke4 {[%clk 0:00:58.8]} 39... Ne6 {[%clk 0:00:12.3]} 40. Nd3
{[%clk 0:00:53.6]} 40... Kf8 {[%clk 0:00:09.5]} 41. Kd5 {[%clk 0:00:51.5]} 41...
Ke8 {[%clk 0:00:09.8]} 42. Kc6 {[%clk 0:00:50.6]} 42... Kd8 {[%clk 0:00:10.2]}
43. Ne5 {[%clk 0:00:48]} 43... Ke8 {[%clk 0:00:07.9]} 44. h5 {[%clk 0:00:46.4]}
44... gxh5 {[%clk 0:00:07.7]} 45. gxh5 {[%clk 0:00:47.3]} 45... Kf8 {[%clk
0:00:05.9]} 46. h6 {[%clk 0:00:45.8]} 46... Kg8 {[%clk 0:00:06.3]} 47. Nxf7
{[%clk 0:00:42.2]} 47... Kxf7 {[%clk 0:00:03.4]} 48. h7 {[%clk 0:00:42.2]} 48...
Nd8+ {[%clk 0:00:03.4]} 49. Kxc7 {[%clk 0:00:40.9]} 1-0

[Event "*** Titled Tuesday Blitz"]
[Site "Chess.com"]
[Date "2020.11.10"]
[Round "9"]
[White "keepitcoming"]
[Black "Mikhal867"]
[Result "0-1"]
[WhiteElo "2487"]
[BlackElo "2362"]
[TimeControl "180+1"]
[EndTime "11:52:08 PST"]
[Termination "Mikhal867 won on time"]

1. d4 {[%clk 0:03:00.9]} 1... Nf6 {[%clk 0:02:57.7]} 2. c4 {[%clk 0:03:00.5]}
2... g6 {[%clk 0:02:54.3]} 3. Nc3 {[%clk 0:02:59.7]} 3... Bg7 {[%clk 0:02:54.3]}
4. e4 {[%clk 0:02:59.7]} 4... O-O {[%clk 0:02:54.2]} 5. f3 {[%clk 0:02:59.8]}
5... d6 {[%clk 0:02:54.3]} 6. Nge2 {[%clk 0:03:00.2]} 6... a6 {[%clk 0:02:53.7]}
7. Ng3 {[%clk 0:02:59.4]} 7... Nc6 {[%clk 0:02:51.6]} 8. Be3 {[%clk 0:02:54.7]}
8... e5 {[%clk 0:02:50.6]} 9. d5 {[%clk 0:02:54.4]} 9... Nd4 {[%clk 0:02:50.3]}
10. Bd3 {[%clk 0:02:53]} 10... c5 {[%clk 0:02:49.4]} 11. O-O {[%clk 0:02:41.8]}
11... h5 {[%clk 0:02:47.2]} 12. Bg5 {[%clk 0:02:40]} 12... Qe8 {[%clk 0:02:46]}
13. Qd2 {[%clk 0:02:38.6]} 13... Nh7 {[%clk 0:02:43.4]} 14. Bh6 {[%clk
0:02:38.7]} 14... h4 {[%clk 0:02:41.8]} 15. Nh1 {[%clk 0:02:37.4]} 15... b5
{[%clk 0:02:36.9]} 16. Bxg7 {[%clk 0:02:23]} 16... Kxg7 {[%clk 0:02:36.2]} 17.
Rae1 {[%clk 0:02:20.1]} 17... g5 {[%clk 0:02:26.2]} 18. a3 {[%clk 0:02:03.9]}
18... f6 {[%clk 0:02:19.1]} 19. Nf2 {[%clk 0:01:54.4]} 19... Rh8 {[%clk
0:02:07.3]} 20. b4 {[%clk 0:01:47.9]} 20... cxb4 {[%clk 0:02:06.1]} 21. axb4
{[%clk 0:01:48.8]} 21... bxc4 {[%clk 0:02:05.9]} 22. Bxc4 {[%clk 0:01:47.3]}
22... Nf8 {[%clk 0:02:05.5]} 23. Qd3 {[%clk 0:01:32.7]} 23... h3 {[%clk
0:02:04.1]} 24. g3 {[%clk 0:01:32.9]} 24... Nd7 {[%clk 0:01:48.4]} 25. Nfd1
{[%clk 0:01:27.3]} 25... Nb6 {[%clk 0:01:47.6]} 26. Ba2 {[%clk 0:01:23]} 26...
a5 {[%clk 0:01:43.4]} 27. b5 {[%clk 0:01:20.6]} 27... Bd7 {[%clk 0:01:42.7]} 28.
Ne3 {[%clk 0:01:07.3]} 28... a4 {[%clk 0:01:24.3]} 29. Rb1 {[%clk 0:01:02.6]}
29... Ra5 {[%clk 0:01:22.8]} 30. Bc4 {[%clk 0:00:49.7]} 30... a3 {[%clk
0:01:20.1]} 31. Rf2 {[%clk 0:00:38.3]} 31... Qc8 {[%clk 0:01:18.6]} 32. Rb4
{[%clk 0:00:36]} 32... Qc5 {[%clk 0:01:17.2]} 33. Na2 {[%clk 0:00:33]} 33... Rc8
{[%clk 0:01:10.3]} 34. f4 {[%clk 0:00:28.3]} 34... g4 {[%clk 0:01:06.8]} 35.
fxe5 {[%clk 0:00:27.5]} 35... fxe5 {[%clk 0:01:03.7]} 36. Qe2 {[%clk 0:00:07.7]}
36... Nf3+ {[%clk 0:00:55.1]} 37. Kf1 {[%clk 0:00:04.4]} 37... Nxc4 {[%clk
0:00:44.5]} 38. Rxc4 {[%clk 0:00:03.1]} 38... Bxb5 {[%clk 0:00:38]} 39. Rxc5
{[%clk 0:00:02.3]} 39... Bxe2+ {[%clk 0:00:37.2]} 40. Kxe2 {[%clk 0:00:01.1]}
40... Raxc5 {[%clk 0:00:36.3]} 41. Nxg4 {[%clk 0:00:02]} 41... Rc2+ {[%clk
0:00:26.5]} 42. Kxf3 {[%clk 0:00:01.9]} 42... Rf8+ {[%clk 0:00:24.6]} 0-1